Workbook

Sheet Pasiūlymas
A1: Perkantysis subjektas, kuriam teikiamas pasiūlymas: | C1: AB „Lietuvos geležinkeliai“
B3: PASIŪLYMAS
B4: Specialiųjų geležinkelio riedmenų ir specialiųjų vagonų nuomos paslaugų pirkimas (3 p.o.d. pakartotinis + vagonai)
A6: Data:
A7: Nr.:
A8: Vieta:
A10: Tiekėjo arba tiekėjų grupės narių pavadinimas (-ai)
A11: Tiekėjo arba tiekėjo grupės narių juridinio asmens kodas (-ai) (tuo atveju, jei pasiūlymą teikia fizinis asmuo - verslo pažymėjimo Nr. ar pan.)
A12: Tiekėjo arba tiekėjo grupės narių PVM mokėtojo kodas (-ai)
A13: Tiekėjų grupės narys, atstovaujantis arba vadovaujantis tiekėjų grupei (pildoma, jei pasiūlymą teikia tiekėjų grupė)
A14: Tiekėjo valdymo ar priežiūros organo narys (-iai) ar kitas asmuo (-ys), turintis (-ys) teisę atstovauti tiekėjui ar jį kontroliuoti, jo vardu priimti sprendimą, sudaryti sandorį
A15: Tiekėjo arba atstovaujančio tiekėjų grupės nario adresas, telefono numeris, fakso numeris, el. paštas
A16: Tiekėjo arba atstovaujančio tiekėjų grupės nario banko pavadinimas, banko kodas, sąskaitos Nr.
A17: Asmens, įgalioto pasirašyti sutartį, vardas, pavardė, pareigos
A18: Asmens, atsakingo už pirkimą, vardas, pavardė, telefono numeris, el. paštas
A24: Siūlomas pirkimo objektas visiškai atitinka pirkimo sąlygose nustatytus reikalavimus ir jo kaina yra:
A28: Nr. | B28: Pavadinimas | C28: Kiekis | D28: Mato vienetas | E28: Kaina be PVM | F28: Suma be PVM
A29: 1. | B29: Nesavaeigio kelio klotuvo su mašinistu nuoma, preliminarus kiekis 100 val.
A30: 1.1. | B30: Vienos transportavimo valandos įkainis su paslaugos gavėjo trauka | C30: 1 | D30: val. | E30: 42 | F30: =IF(ISBLANK(E30),"", PRODUCT(C30,E30)) -> 42
A31: 1.2. | B31: Vienos darbo valandos įkainis | C31: 1 | D31: val. | E31: 400 | F31: =IF(ISBLANK(E31),"", PRODUCT(C31,E31)) -> 400
E32: Suma be PVM | F32: =SUM(F30:F31) -> 442
E33: PVM suma | F33: 92.82
E34: Suma su PVM | F34: =IF(ISBLANK(F33), "", SUM(F32:F33)) -> 534.82
A36: 2. | B36: Motorinės platformos su mašinistu nuoma, preliminarus kiekis 100 val.
A37: 2.1. | B37: Vienos transportavimo valandos įkainis su paslaugos gavėjo trauka | C37: 1 | D37: val. | E37: 21 | F37: =IF(ISBLANK(E37),"", PRODUCT(C37,E37)) -> 21
A38: 2.2. | B38: Vienos darbo valandos įkainis | C38: 1 | D38: val. | E38: 205 | F38: =IF(ISBLANK(E38),"", PRODUCT(C38,E38)) -> 205
E39: Suma be PVM | F39: =SUM(F37:F38) -> 226
E40: PVM suma | F40: 47.46
E41: Suma su PVM | F41: =IF(ISBLANK(F40), "", SUM(F39:F40)) -> 273.46
A43: 3. | B43: Nesavaeigio elektrobalastuotuvo su mašinistu nuoma, preliminarus kiekis 100 val.
A44: 3.1. | B44: Vienos transportavimo valandos įkainis su paslaugos gavėjo trauka | C44: 1 | D44: val. | E44: 42 | F44: =IF(ISBLANK(E44),"", PRODUCT(C44,E44)) -> 42
A45: 3.2. | B45: Vienos darbo valandos įkainis | C45: 1 | D45: val. | E45: 345 | F45: =IF(ISBLANK(E45),"", PRODUCT(C45,E45)) -> 345
E46: Suma be PVM | F46: =SUM(F44:F45) -> 387
E47: PVM suma | F47: 81.27
E48: Suma su PVM | F48: =IF(ISBLANK(F47), "", SUM(F46:F47)) -> 468.27
A50: 4. | B50: Nesavaeigės kelio ištaisymo-pamušimo-apdailos mašinos su mašinistu nuoma, preliminarus kiekis 100 val.
A51: 4.1. | B51: Vienos transportavimo valandos įkainis su paslaugos gavėjo trauka | C51: 1 | D51: val. | E51: 81 | F51: =IF(ISBLANK(E51),"", PRODUCT(C51,E51)) -> 81
A52: 4.2. | B52: Vienos darbo valandos įkainis | C52: 1 | D52: val. | E52: 470 | F52: =IF(ISBLANK(E52),"", PRODUCT(C52,E52)) -> 470
E53: Suma be PVM | F53: =SUM(F51:F52) -> 551
E54: PVM suma | F54: 115.71
E55: Suma su PVM | F55: =IF(ISBLANK(F54), "", SUM(F53:F54)) -> 666.71
A57: 5. | B57: Savaeigės kelio ištaisymo ciklinio veikimo mašinos su mašinistu nuoma, preliminarus kiekis 100 val.
A58: 5.1. | B58: Vienos transportavimo valandos įkainis su paslaugos gavėjo trauka | C58: 1 | D58: val. | E58: 80.43 | F58: =IF(ISBLANK(E58),"", PRODUCT(C58,E58)) -> 80.43
A59: 5.2. | B59: Vienos savo eiga važiavimo valandos įkainis | C59: 1 | D59: val. | E59: 710 | F59: =IF(ISBLANK(E59),"", PRODUCT(C59,E59)) -> 710
A60: 5.3. | B60: Vienos darbo valandos įkainis | C60: 1 | D60: val. | E60: 710 | F60: =IF(ISBLANK(E60),"", PRODUCT(C60,E60)) -> 710
E61: Suma be PVM | F61: =SUM(F58:F60) -> 1500.43
E62: PVM suma | F62: 315.09
E63: Suma su PVM | F63: =IF(ISBLANK(F62), "", SUM(F61:F62)) -> 1815.52
A65: 6. | B65: Savaeigės iešmų ir kelio ištaisymo mašinos su mašinistu nuoma, preliminarus kiekis 100 val.
A66: 6.1. | B66: Vienos transportavimo valandos įkainis su paslaugos gavėjo trauka | C66: 1 | D66: val. | E66: 80.43 | F66: =IF(ISBLANK(E66),"", PRODUCT(C66,E66)) -> 80.43
A67: 6.2. | B67: Vienos savo eiga važiavimo valandos įkainis | C67: 1 | D67: val. | E67: 780 | F67: =IF(ISBLANK(E67),"", PRODUCT(C67,E67)) -> 780
A68: 6.3. | B68: Vienos darbo valandos įkainis | C68: 1 | D68: val. | E68: 780 | F68: =IF(ISBLANK(E68),"", PRODUCT(C68,E68)) -> 780
E69: Suma be PVM | F69: =SUM(F66:F68) -> 1640.43
E70: PVM suma | F70: 344.49
E71: Suma su PVM | F71: =IF(ISBLANK(F70), "", SUM(F69:F70)) -> 1984.92
A73: 7. | B73: Savaeigės iešmų ir kelio ištaisymo mašinossu mašinistu nuoma, preliminarus kiekis 100 val.
A74: 7.1. | B74: Vienos transportavimo valandos įkainis su paslaugos gavėjo trauka | C74: 1 | D74: val. | F74: =IF(ISBLANK(E74),"", PRODUCT(C74,E74)) -> 
A75: 7.2. | B75: Vienos savo eiga važiavimo valandos įkainis | C75: 1 | D75: val. | F75: =IF(ISBLANK(E75),"", PRODUCT(C75,E75)) -> 
A76: 7.3. | B76: Vienos darbo valandos įkainis | C76: 1 | D76: val. | F76: =IF(ISBLANK(E76),"", PRODUCT(C76,E76)) -> 
E77: Suma be PVM | F77: =SUM(F74:F76) -> 0
E78: PVM suma
E79: Suma su PVM | F79: =IF(ISBLANK(F78), "", SUM(F77:F78)) -> 
A81: 8. | B81: Savaeigės skaldos planiravimo su mašinistu nuoma, preliminarus kiekis 100 val.
A82: 8.1. | B82: Vienos transportavimo valandos įkainis su paslaugos gavėjo trauka | C82: 1 | D82: val. | E82: 70.38 | F82: =IF(ISBLANK(E82),"", PRODUCT(C82,E82)) -> 70.38
A83: 8.2. | B83: Vienos savo eiga važiavimo valandos įkainis | C83: 1 | D83: val. | E83: 670 | F83: =IF(ISBLANK(E83),"", PRODUCT(C83,E83)) -> 670
A84: 8.3. | B84: Vienos darbo valandos įkainis | C84: 1 | D84: val. | E84: 670 | F84: =IF(ISBLANK(E84),"", PRODUCT(C84,E84)) -> 670
E85: Suma be PVM | F85: =SUM(F82:F84) -> 1410.38
E86: PVM suma | F86: 296.18
E87: Suma su PVM | F87: =IF(ISBLANK(F86), "", SUM(F85:F86)) -> 1706.56
A89: 9. | B89: Savaeigio kelio stabilizatoriaus su mašinistu nuoma, preliminarus kiekis 100 val.
A90: 9.1. | B90: Vienos transportavimo valandos įkainis su paslaugos gavėjo trauka | C90: 1 | D90: val. | E90: 42 | F90: =IF(ISBLANK(E90),"", PRODUCT(C90,E90)) -> 42
A91: 9.2. | B91: Vienos savo eiga važiavimo valandos įkainis | C91: 1 | D91: val. | E91: 610 | F91: =IF(ISBLANK(E91),"", PRODUCT(C91,E91)) -> 610
A92: 9.3. | B92: Vienos darbo valandos įkainis | C92: 1 | D92: val. | E92: 610 | F92: =IF(ISBLANK(E92),"", PRODUCT(C92,E92)) -> 610
E93: Suma be PVM | F93: =SUM(F90:F92) -> 1262
E94: PVM suma | F94: 265.02
E95: Suma su PVM | F95: =IF(ISBLANK(F94), "", SUM(F93:F94)) -> 1527.02
A97: 10. | B97: Savaeigės skaldos valymo su mašinistu nuoma, preliminarus kiekis 100 val.
A98: 10.1. | B98: Vienos transportavimo valandos įkainis su paslaugos gavėjo trauka | C98: 1 | D98: val. | E98: 80.43 | F98: =IF(ISBLANK(E98),"", PRODUCT(C98,E98)) -> 80.43
A99: 10.2. | B99: Vienos savo eiga važiavimo valandos įkainis | C99: 1 | D99: val. | E99: 595 | F99: =IF(ISBLANK(E99),"", PRODUCT(C99,E99)) -> 595
A100: 10.3. | B100: Vienos darbo valandos įkainis | C100: 1 | D100: val. | E100: 595 | F100: =IF(ISBLANK(E100),"", PRODUCT(C100,E100)) -> 595
E101: Suma be PVM | F101: =SUM(F98:F100) -> 1270.43
E102: PVM suma | F102: 266.79
E103: Suma su PVM | F103: =IF(ISBLANK(F102), "", SUM(F101:F102)) -> 1537.22
A105: 11. | B105: Savaeigės skaldos valymo mašinos su mašinistu nuoma, preliminarus kiekis 100 val.
A106: 11.1. | B106: Vienos transportavimo valandos įkainis su paslaugos gavėjo trauka | C106: 1 | D106: val. | F106: =IF(ISBLANK(E106),"", PRODUCT(C106,E106)) -> 
A107: 11.2. | B107: Vienos savo eiga važiavimo valandos įkainis | C107: 1 | D107: val. | F107: =IF(ISBLANK(E107),"", PRODUCT(C107,E107)) -> 
A108: 11.3. | B108: Vienos darbo valandos įkainis | C108: 1 | D108: val. | F108: =IF(ISBLANK(E108),"", PRODUCT(C108,E108)) -> 
E109: Suma be PVM | F109: =SUM(F106:F108) -> 0
E110: PVM suma
E111: Suma su PVM | F111: =IF(ISBLANK(F110), "", SUM(F109:F110)) -> 
A113: 12. | B113: Užteršto grunto išvežimo sąstato su mašinistu nuoma, preliminarus kiekis 100 val.
A114: 12.1. | B114: Vienos transportavimo valandos įkainis su paslaugos gavėjo trauka | C114: 1 | D114: val. | E114: 63 | F114: =IF(ISBLANK(E114),"", PRODUCT(C114,E114)) -> 63
A115: 12.2. | B115: Vienos darbo valandos įkainis | C115: 1 | D115: val. | E115: 600 | F115: =IF(ISBLANK(E115),"", PRODUCT(C115,E115)) -> 600
E116: Suma be PVM | F116: =SUM(F114:F115) -> 663
E117: PVM suma | F117: 139.23
E118: Suma su PVM | F118: =IF(ISBLANK(F117), "", SUM(F116:F117)) -> 802.23
A120: 13. | B120: Pabėgių keitimo komplekso su mašinistu nuoma, preliminarus kiekis 100 val.
A121: 13.1. | B121: Vienos transportavimo valandos įkainis su paslaugos gavėjo trauka | C121: 1 | D121: val. | E121: 103 | F121: =IF(ISBLANK(E121),"", PRODUCT(C121,E121)) -> 103
A122: 13.2. | B122: Vienos darbo valandos įkainis | C122: 1 | D122: val. | E122: 1300 | F122: =IF(ISBLANK(E122),"", PRODUCT(C122,E122)) -> 1300
E123: Suma be PVM | F123: =SUM(F121:F122) -> 1403
E124: PVM suma | F124: 294.63
E125: Suma su PVM | F125: =IF(ISBLANK(F124), "", SUM(F123:F124)) -> 1697.63
A127: 14. | B127: Dozuojamojo vagono su aptarnaujančiu asmeniu nuoma, preliminarus kiekis 160 val.
A128: 14.1. | B128: Dozuojamojo vagono su aptarnaujančiu asmeniu valandos nuomos įkainis | C128: 1 | D128: val. | E128: 20.6 | F128: =IF(ISBLANK(E128),"", PRODUCT(C128,E128)) -> 20.6
A129: 14.2. | B129: Dozuojamojo vagono be aptarnaujančio asmens valandos nuomos įkainis | C129: 1 | D129: val. | E129: 3.67 | F129: 3.67
E130: Suma be PVM | F130: 24.27
E131: PVM suma | F131: 5.1
E132: Suma su PVM | F132: =IF(ISBLANK(F131), "", SUM(F130:F131)) -> 29.37
A134: 15. | B134: Savivarčio vagono su aptarnaujančiu asmeniu nuoma, preliminarus kiekis 160 val.
A135: 15.1. | B135: Savivarčio vagono su aptarnaujančiu asmeniu valandos nuomos įkainis | C135: 1 | D135: val. | E135: 20.23 | F135: =IF(ISBLANK(E135),"", PRODUCT(C135,E135)) -> 20.23
A136: 15.2. | B136: Savivarčio vagono be aptarnaujančio asmens valandos nuomos įkainis | C136: 1 | D136: val. | E136: 3.67 | F136: 3.67
E137: Suma be PVM | F137: 23.9
E138: PVM suma | F138: 5.02
E139: Suma su PVM | F139: =IF(ISBLANK(F138), "", SUM(F137:F138)) -> 28.92
A141: 16. | B141: Platforminio vagono su unifikuota nuimama įranga nuoma, preliminarus kiekis 160 val.
A142: 16.1. | B142: Valandos nuomos įkainis | C142: 1 | D142: val. | E142: 2.07 | F142: =IF(ISBLANK(E142),"", PRODUCT(C142,E142)) -> 2.07
E143: Suma be PVM | F143: =SUM(F142:F142) -> 2.07
E144: PVM suma | F144: 0.43
E145: Suma su PVM | F145: =IF(ISBLANK(F144), "", SUM(F143:F144)) -> 2.5
A147: 17. | B147: Klasinio vagono nuoma, preliminarus kiekis 160 val.
A148: 17.1. | B148: Valandos nuomos įkainis | C148: 1 | D148: val. | E148: 10.7 | F148: =IF(ISBLANK(E148),"", PRODUCT(C148,E148)) -> 10.7
E149: Suma be PVM | F149: =SUM(F148:F148) -> 10.7
E150: PVM suma | F150: 2.25
E151: Suma su PVM | F151: =IF(ISBLANK(F150), "", SUM(F149:F150)) -> 12.95

Sheet Subtiekėjai
A2: Subtiekėjai ir jiems perduodama vykdyti pirkimo sutarties dalis:
A4: Eil. Nr | C4: Subtiekėjo pavadinimas | F4: Pirkimo objekto dalies, perduodamos vykdyti subtiekėjui, aprašymas | I4: Procentas perduodamos vykdyti pirkimo objekto dalies nuo pasiūlymo kainos su PVM (pildoma, jei ūkio subjektas vykdys sutartį)
A11: Kartu su pasiūlymu pateikiami šie dokumentai:
A13: Eil.Nr. | B13: Dokumentas | E13: Ar dokumnetas konfidencialus? (Taip/Ne) | G13: Prisegtos bylos (failo) pavadinimas | I13: Paaiškinimas, kokia konkreti informacija dokumente yra konfidenciali
A20: Pasirašydamas šį pasiūlymą, tvirtintu, kad: 1) pasiūlymo dokumentuose pateikti duomenys yra tikri; 2) siūlomas Pirkimo objektas visiškai atitinka Pirkimo dokumentuose nustatytus reikalavimus; 3) sutinku su visomis Pirkimo dokumentuose nustatytomis sąlygomis; 4) pasiūlymas galioja iki termino, nustatyto Pirkimo dokumentuose; 5) mes esame / nesame (nereikalingą išbraukti) laikomi asocijuotais (susijusiais) su Perkančiuoju subjektu pagal Lietuvos Respublikoje galiojančių teisės aktų (Lietuvos Respublikos pelno mokesčio, Lietuvos Respublikos pridėtinės vertės mokesčio ir Lietuvos Respublikos gyventojų pajamų mokesčio įstatymų) nuostatas; 6) savo pasiūlymo galiojimą užtikrinsiu pagal Specialiųjų sąlygų 6.1 punktą (jei taikoma).
A22: Pasiūlymo galiojimo užtikrinimui pateikiame :
A24: (Nurodyti užtikrinimo būdą, dydį, dokumentus)
A26: Pasiūlymas galioja iki termino, nustatyto pirkimo dokumentuose. Pasiūlymo neatskiriama dalis yra (rašoma, jeigu buvo reikalauta prie pasiūlymo pridėti atitinkamą dokumentą)
A30: Tiekėjo arba jo įgalioto asmens pareigų pavadinimas
A33: Pasirašančio asmens vardas ir pavardė
A100: 10189 2019-01-07 14:35:33
